bitfinex/quotes_BTCUSD_20250213
["timestamp","ask_amount","ask_price","bid_price","bid_amount"]
[1739409999810,0.15,97976.0,97969.0,0.08151662]
[1739409999988,0.15,97976.0,97969.0,0.08164883]
[1739410000215,0.153108,97970.0,97969.0,0.00013221]
[1739410000627,0.16049762,97970.0,97969.0,0.00013221]
[1739410001992,0.17963768,97970.0,97969.0,0.00013221]
[1739410002172,0.17963768,97970.0,97969.0,0.00213221]
[1739410002399,0.17963768,97970.0,97969.0,0.00013221]
[1739410002597,0.12378873,97970.0,97950.0,1.02384509]
[1739410002796,0.153137,97951.0,97950.0,4.402e-05]
[1739410002998,0.3130597,97951.0,97950.0,4.402e-05]
[1739410003244,0.52461731,97951.0,97950.0,4.402e-05]
[1739410003879,0.52461731,97951.0,97950.0,0.00204402]
[1739410004236,0.52461731,97951.0,97950.0,4.402e-05]
[1739410004436,0.53654407,97951.0,97950.0,4.402e-05]
[1739410004642,0.55568413,97951.0,97950.0,4.402e-05]
[1739410005219,0.57575439,97951.0,97950.0,4.402e-05]
[1739410005419,0.57575439,97951.0,97950.0,0.00304402]
[1739410005744,0.57575439,97951.0,97950.0,4.402e-05]
[1739410005972,0.57575439,97951.0,97950.0,0.00104402]
[1739410006177,0.57975439,97951.0,97950.0,0.00204402]
[1739410006384,0.56983169,97951.0,97950.0,0.00204402]
[1739410006584,0.57975439,97951.0,97950.0,0.00204402]
[1739410006797,0.04244143,97951.0,97950.0,0.08194402]
[1739410007025,0.18365167,97951.0,97950.0,0.23074767]
[1739410007684,0.18365167,97951.0,97950.0,1.73074767]
[1739410008152,0.16451161,97951.0,97950.0,1.73074767]
[1739410009510,0.01137461,97951.0,97950.0,1.73074767]
[1739410009713,0.157137,97951.0,97950.0,1.73074767]
[1739410009923,0.16448694,97951.0,97950.0,1.73074767]
[1739410011293,0.16448694,97951.0,97950.0,1.62824402]
[1739410012179,0.16448694,97951.0,97950.0,0.12824402]
[1739410012918,0.157137,97951.0,97950.0,0.12824402]
[1739410013120,0.16448727,97951.0,97950.0,0.12824402]
[1739410014372,0.31448727,97951.0,97950.0,0.08194402]
[1739410014696,0.31448727,97951.0,97950.0,0.00204402]
[1739410014897,0.31448727,97951.0,97950.0,0.00226788]
[1739410015099,0.33351807,97951.0,97950.0,0.00226788]
[1739410026064,0.31448727,97951.0,97950.0,0.00226788]
[1739410026485,0.16135027,97951.0,97950.0,0.10477153]
[1739410026694,0.16135027,97951.0,97950.0,0.23447153]
[1739410026898,0.01135027,97951.0,97950.0,0.38761053]
[1739410027111,0.004,97951.0,97950.0,1.73447153]
[1739410027568,0.004,97951.0,97950.0,2.91145562]
[1739410027759,0.004,97951.0,97950.0,2.75831662]
[1739410028372,0.204171,97957.0,97950.0,2.75341662]
[1739410028587,0.2042736,97959.0,97952.0,0.0778]
[1739410028785,0.2042736,97959.0,97953.0,0.10250365]
[1739410029096,0.0001066,97959.0,97953.0,0.10250365]
[1739410029306,0.153133,97954.0,97953.0,0.10250365]
[1739410030551,0.16049043,97954.0,97953.0,0.10250365]
[1739410031116,0.31049043,97954.0,97953.0,0.001]
[1739410031334,0.31049043,97954.0,97953.0,0.002]
[1739410031554,0.153137,97951.0,97950.0,0.00026788]
[1739410032036,0.16048473,97951.0,97950.0,0.00026788]
[1739410032692,0.16748473,97951.0,97950.0,0.00126788]
[1739410033505,0.18660127,97951.0,97950.0,0.00126788]
[1739410034385,0.18660127,97951.0,97950.0,0.00226788]
[1739410039417,0.33660127,97951.0,97950.0,0.00226788]
[1739410039972,0.32960127,97951.0,97950.0,0.00126788]
[1739410040153,0.32960127,97951.0,97950.0,0.00026788]
[1739410040356,0.34160127,97951.0,97950.0,0.00126788]
[1739410040556,0.34260127,97951.0,97950.0,0.00126788]
[1739410041260,0.33060127,97951.0,97950.0,0.00026788]
[1739410041617,0.34060127,97951.0,97950.0,0.00026788]
[1739410047455,0.35060127,97951.0,97950.0,0.00026788]
[1739410049535,0.34060127,97951.0,97950.0,0.00026788]
[1739410052677,0.85942762,97951.0,97950.0,8.8e-07]
[1739410052880,0.30318,97924.0,97921.0,0.0758]
[1739410053218,0.31130448,97924.0,97923.0,0.00044103]
[1739410054250,0.33142102,97924.0,97923.0,0.00044103]
[1739410055527,0.33942102,97924.0,97923.0,0.00144103]
[1739410061346,0.33942102,97924.0,97923.0,0.00166489]
[1739410065711,0.33942102,97924.0,97923.0,0.08116489]
[1739410066327,0.32030448,97924.0,97923.0,0.08116489]
[1739410071468,0.33940601,97924.0,97923.0,0.08116489]
[1739410072692,0.32030448,97924.0,97923.0,0.08116489]
[1739410074027,0.32030448,97924.0,97923.0,0.18366854]
[1739410074211,0.32030448,97924.0,97923.0,0.22956854]
[1739410077028,0.32030448,97924.0,97923.0,0.12706489]
[1739410080537,0.01712448,97924.0,97923.0,0.22956854]
[1739410080743,0.17030448,97924.0,97923.0,0.22956854]
[1739410081346,0.01712448,97924.0,97923.0,0.22956854]
[1739410081832,0.01712752,97924.0,97923.0,0.22956854]
[1739410082665,0.01712752,97924.0,97923.0,0.38274954]
[1739410082794,0.01712752,97924.0,97923.0,1.88274954]
[1739410082996,0.009,97924.0,97923.0,1.88274954]
[1739410083198,0.009,97924.0,97923.0,1.72956854]
[1739410084114,0.01712841,97924.0,97923.0,1.88274954]
[1739410084318,0.01712841,97924.0,97923.0,1.72956854]
[1739410084531,0.009,97924.0,97923.0,1.72956854]
[1739410086094,0.16218,97924.0,97923.0,1.72956854]
[1739410086577,0.17032235,97924.0,97923.0,1.72956854]
[1739410086778,0.17032235,97924.0,97923.0,1.86888854]
[1739410086972,0.16218,97924.0,97923.0,1.86888854]
[1739410089661,0.16218,97924.0,97923.0,0.36888854]
[1739410090214,0.17032235,97924.0,97923.0,0.36888854]
[1739410091137,0.17032235,97924.0,97923.0,1.86888854]
[1739410091567,0.16218,97924.0,97923.0,1.86888854]
[1739410091810,0.17032235,97924.0,97923.0,1.86888854]
[1739410095746,0.01714235,97924.0,97923.0,1.86888854]
[1739410096086,0.16218,97924.0,97923.0,1.86888854]
[1739410096491,0.16884192,97924.0,97923.0,1.86888854]
[1739410097247,0.01566192,97924.0,97923.0,1.86888854]
[1739410097681,0.009,97924.0,97923.0,1.86888854]
[1739410097886,0.01566192,97924.0,97923.0,1.86888854]
[1739410098087,0.009,97924.0,97923.0,1.86888854]
[1739410098515,0.16218,97924.0,97923.0,0.14098489]
[1739410098933,0.16882964,97924.0,97923.0,0.14098489]
[1739410099071,0.31882964,97924.0,97923.0,0.14098489]
[1739410100092,0.30982964,97924.0,97923.0,0.13998489]
[1739410100291,0.30982964,97924.0,97923.0,0.14098489]
[1739410100492,0.32682964,97924.0,97923.0,0.14098489]
[1739410101008,0.32982964,97924.0,97923.0,0.14098489]
[1739410101717,0.31582964,97924.0,97923.0,0.13998489]
[1739410102083,0.32982964,97924.0,97923.0,0.13998489]
[1739410102687,0.32382964,97924.0,97923.0,0.13998489]
[1739410102992,0.33356289,97924.0,97923.0,0.13998489]
[1739410103415,0.34556289,97924.0,97923.0,0.13998489]
[1739410103617,0.34856289,97924.0,97923.0,0.13998489]
[1739410103821,0.34556289,97924.0,97923.0,0.13998489]
[1739410104196,0.34856289,97924.0,97923.0,0.13998489]
[1739410104410,0.34556289,97924.0,97923.0,0.13998489]
[1739410104817,0.33356289,97924.0,97923.0,0.13998489]
[1739410105059,0.34756289,97924.0,97923.0,0.13998489]
[1739410105466,0.33356289,97924.0,97923.0,0.13998489]
[1739410105671,0.33656289,97924.0,97923.0,0.13998489]
[1739410105844,0.34956289,97924.0,97923.0,0.13998489]
[1739410106060,0.34356289,97924.0,97923.0,0.13998489]
[1739410106263,0.34656289,97924.0,97923.0,0.13998489]
[1739410106461,0.33356289,97924.0,97923.0,0.13998489]
[1739410106645,0.33056289,97924.0,97923.0,0.13998489]
[1739410106848,0.33356289,97924.0,97923.0,0.13998489]
[1739410107522,0.33656289,97924.0,97923.0,0.13998489]
[1739410108059,0.35056289,97924.0,97923.0,0.13998489]
[1739410108459,0.33656289,97924.0,97923.0,0.13998489]
[1739410108666,0.34356289,97924.0,97923.0,0.13998489]
[1739410109071,0.34656289,97924.0,97923.0,0.13998489]
[1739410109416,0.34956289,97924.0,97923.0,0.13998489]
[1739410109789,0.34656289,97924.0,97923.0,0.13998489]
[1739410110023,0.34956289,97924.0,97923.0,0.13998489]
[1739410110491,0.34656289,97924.0,97923.0,0.13998489]
[1739410110725,0.34956289,97924.0,97923.0,0.13998489]
[1739410110896,0.33656289,97924.0,97923.0,0.13998489]
[1739410111110,0.35056289,97924.0,97923.0,0.13998489]
[1739410111728,0.33656289,97924.0,97923.0,0.13998489]
[1739410112072,0.34956289,97924.0,97923.0,0.13998489]
[1739410112551,0.34356289,97924.0,97923.0,0.13998489]
[1739410112770,0.46147134,97924.0,97923.0,0.13998489]
[1739410113026,0.37956289,97924.0,97923.0,0.13998489]
[1739410113245,0.38256289,97924.0,97923.0,0.13998489]
[1739410113552,0.37956289,97924.0,97923.0,0.13998489]
[1739410113968,0.36956289,97924.0,97923.0,0.13998489]
[1739410114181,0.36656289,97924.0,97923.0,0.13998489]
[1739410114402,0.36956289,97924.0,97923.0,0.13998489]
[1739410114652,0.38356289,97924.0,97923.0,0.13998489]
[1739410115503,0.36956289,97924.0,97923.0,0.13998489]
[1739410115725,0.37656289,97924.0,97923.0,0.13998489]
[1739410116184,0.37956289,97924.0,97923.0,0.13998489]
[1739410116591,0.38256289,97924.0,97923.0,0.13998489]
[1739410116729,0.37956289,97924.0,97923.0,0.13998489]
[1739410116936,0.36656289,97924.0,97923.0,0.13998489]
[1739410117256,0.38356289,97924.0,97923.0,0.13998489]
[1739410117688,0.71156289,97924.0,97923.0,0.13998489]
[1739410127961,0.69756289,97924.0,97923.0,0.13998489]
[1739410128201,0.71056289,97924.0,97923.0,0.13998489]
[1739410129380,0.70456289,97924.0,97923.0,0.13998489]
[1739410129603,0.70756289,97924.0,97923.0,0.13998489]
[1739410143520,0.69756289,97924.0,97923.0,0.13998489]
[1739410143739,0.70756289,97924.0,97923.0,0.13998489]
[1739410144142,0.69756289,97924.0,97923.0,0.13998489]
[1739410144724,0.70756289,97924.0,97923.0,0.22038489]
[1739410145343,0.67456289,97924.0,97923.0,0.22038489]
[1739410149465,0.67456289,97924.0,97923.0,0.26548489]
[1739410153325,0.34656289,97924.0,97923.0,0.26548489]
[1739410154524,0.35656289,97924.0,97923.0,0.13998489]
[1739410155343,0.3757214,97924.0,97923.0,0.13998489]
[1739410164438,0.3657214,97924.0,97923.0,0.26678489]
[1739410164802,0.34656289,97924.0,97923.0,1.76678489]
[1739410164968,0.02264964,97924.0,97923.0,0.26678489]
[1739410165181,0.016,97924.0,97923.0,0.36928854]
[1739410165394,0.016,97924.0,97923.0,1.86928854]
[1739410165592,0.0001066,97950.0,97924.0,0.1268]
[1739410165798,0.0001066,97950.0,97937.0,0.0476]
[1739410165996,0.153156,97939.0,97938.0,0.10250365]
[1739410166196,0.153156,97939.0,97938.0,0.24180365]
[1739410166394,0.15982358,97939.0,97938.0,0.32100365]
[1739410167017,0.17893685,97939.0,97938.0,0.32100365]
[1739410167217,0.18093685,97939.0,97938.0,0.2185]
[1739410167656,0.18093685,97939.0,97938.0,0.32100365]
[1739410168217,0.16182358,97939.0,97938.0,0.32100365]
[1739410168464,0.17082358,97939.0,97938.0,0.32200365]
[1739410169045,0.01766758,97939.0,97938.0,0.37040365]
[1739410169391,0.011,97939.0,97938.0,0.37040365]
[1739410169585,0.01766401,97939.0,97938.0,0.37040365]
[1739410170148,0.1261,97944.0,97938.0,0.37040365]
[1739410170350,0.0001066,97950.0,97949.0,0.1252]
[1739410170530,0.0001066,97950.0,97949.0,0.36699365]
[1739410170942,0.0001066,97950.0,97949.0,1.86699365]
[1739410171506,0.0001066,97959.0,97958.0,0.153126]
[1739410171695,0.0001066,97959.0,97958.0,0.51929965]
[1739410172720,0.0001066,97959.0,97958.0,0.51938069]
[1739410173088,0.0001066,97959.0,97958.0,2.01938069]
[1739410174453,0.0001066,97959.0,97958.0,2.02238069]
[1739410174669,0.0001066,97959.0,97958.0,0.52738069]
[1739410174978,0.0001066,97959.0,97958.0,0.53138069]
[1739410175139,0.0001066,97959.0,97958.0,0.52638069]
[1739410175781,0.0001066,97959.0,97958.0,0.53238069]
[1739410176850,3.0,98000.0,97960.0,0.204164]
[1739410177022,0.15,97999.0,97983.0,0.0788]
[1739410177353,0.00642632,97994.0,97985.0,0.0788]
[1739410177503,0.153081,97987.0,97986.0,0.10250365]
[1739410177703,0.153081,97987.0,97986.0,0.24173365]
[1739410178111,0.1595018,97987.0,97986.0,0.24173365]
[1739410178691,0.1655018,97987.0,97986.0,0.24273365]
[1739410179979,0.0124208,97987.0,97986.0,0.24273365]
[1739410180938,0.0064208,97987.0,97986.0,0.24173365]
[1739410181138,0.0094208,97987.0,97986.0,0.24273365]
[1739410181760,0.1625018,97987.0,97986.0,0.24273365]
[1739410182362,0.0094208,97987.0,97986.0,0.24273365]
[1739410183297,0.1625018,97987.0,97986.0,0.24273365]
[1739410185019,0.1625018,97987.0,97986.0,1.74273365]
[1739410187518,0.1625018,97987.0,97986.0,1.64023]
[1739410187718,0.1625018,97987.0,97986.0,0.14023]
[1739410187926,0.1814459,97987.0,97986.0,0.14023]
[1739410189009,0.1815524,97987.0,97986.0,0.14023]
[1739410191216,0.1815524,97987.0,97986.0,0.13883]
[1739410193657,0.21192437,97987.0,97986.0,0.13883]
[1739410194807,0.05884337,97987.0,97986.0,0.24133365]
[1739410195050,0.21192437,97987.0,97986.0,0.24133365]
[1739410195248,0.20550357,97987.0,97986.0,0.24133365]
[1739410195529,0.21194545,97987.0,97986.0,0.24133365]
[1739410198286,0.18157348,97987.0,97986.0,0.24133365]
[1739410200933,0.18157348,97987.0,97986.0,0.13883]
[1739410202290,0.33157348,97987.0,97986.0,0.13883]
[1739410204722,0.50817423,97987.0,97986.0,0.057186]
[1739410205070,0.51775573,97987.0,97986.0,1e-06]
[1739410205619,0.153123,97960.0,97959.0,0.00022365]
[1739410206232,0.17223748,97960.0,97959.0,0.00022365]
[1739410206726,0.17323748,97960.0,97959.0,0.00022365]
[1739410206932,0.02011448,97960.0,97959.0,0.1027273]
[1739410207135,0.17323748,97960.0,97959.0,0.1824273]
[1739410207738,0.02011448,97960.0,97959.0,0.1824273]
[1739410208203,0.17323748,97960.0,97959.0,1.6824273]
[1739410208400,0.02011448,97960.0,97959.0,1.6824273]
[1739410208608,0.001,97960.0,97959.0,1.6824273]
[1739410209113,0.001,97960.0,97959.0,1.8355523]
[1739410209355,0.001,97960.0,97959.0,1.6824273]
[1739410210086,0.001,97960.0,97959.0,1.8848523]
[1739410211169,0.001,97960.0,97959.0,1.7317273]
[1739410211587,0.001,97960.0,97959.0,1.8848523]
[1739410213366,0.001,97960.0,97959.0,1.8838523]
[1739410213761,0.001,97960.0,97959.0,1.8878523]
[1739410214379,0.15,97979.0,97965.0,0.0827]
[1739410214583,0.15,97979.0,97966.0,0.10250365]
[1739410215126,0.15,97976.0,97966.0,0.10250365]
[1739410215320,0.153094,97979.0,97966.0,0.10250365]
[1739410215543,0.15,97978.0,97969.0,0.153108]
[1739410215779,0.15,97978.0,97971.0,0.0767]
[1739410215960,0.007,97979.0,97978.0,0.153095]
[1739410216164,0.001,97979.0,97978.0,0.33889865]
[1739410216531,0.15,97989.0,97978.0,0.18580365]
[1739410216733,0.204097,97993.0,97979.0,0.10250365]
[1739410216942,0.204102,97990.0,97980.0,1.5]
[1739410217138,0.153086,97984.0,97981.0,0.10250365]
[1739410217565,0.0064347,97983.0,97981.0,0.10250365]
[1739410217766,0.0064347,97983.0,97982.0,1.5]
[1739410218009,0.0064347,97983.0,97982.0,1.60250365]
[1739410218247,0.153086,97984.0,97982.0,1.60250365]
[1739410218437,0.153086,97984.0,97983.0,0.10250365]
[1739410220410,0.0001065,97987.0,97972.0,0.0479]
[1739410220591,0.153103,97973.0,97971.0,0.4098]
[1739410220811,0.153103,97973.0,97971.0,0.327]
[1739410221644,0.153112,97967.0,97966.0,0.0828]
[1739410222037,0.153112,97967.0,97966.0,0.18530365]
[1739410223091,0.153112,97967.0,97966.0,0.18730365]
[1739410223550,0.20411,97986.0,97966.0,0.18730365]
[1739410223800,0.02056617,97983.0,97967.0,0.10250365]
[1739410224041,0.153101,97975.0,97967.0,0.25561565]
[1739410224277,0.15,97978.0,97968.0,0.00102065]
[1739410224447,0.15,97978.0,97969.0,0.10250365]
[1739410224834,0.153097,97977.0,97969.0,0.10250365]
[1739410225039,0.00644408,97976.0,97973.0,0.153102]
[1739410225238,0.15,97980.0,97974.0,0.25560465]
[1739410225443,0.00642921,97979.0,97974.0,0.25560465]
[1739410225854,0.00642921,97979.0,97974.0,0.10250365]
[1739410226041,0.15,97980.0,97974.0,0.10250365]
[1739410226265,0.153097,97977.0,97974.0,0.10250365]
[1739410226588,0.00642684,97976.0,97975.0,1.5]
[1739410226792,0.15952484,97976.0,97975.0,1.60250365]
[1739410228774,0.15952484,97976.0,97975.0,1.60450365]
[1739410228976,0.15952484,97976.0,97975.0,1.60650365]
[1739410229102,0.153098,97976.0,97975.0,1.60650365]
[1739410230004,0.153098,97976.0,97975.0,0.10650365]
[1739410230208,0.153098,97976.0,97975.0,0.004]
[1739410230209,0.15952015,97976.0,97975.0,0.004]
[1739410230404,0.15952015,97976.0,97975.0,0.01172]
[1739410230988,0.15952015,97976.0,97975.0,0.00972]
[1739410231187,0.15952015,97976.0,97975.0,0.003]
[1739410231188,0.31652015,97976.0,97975.0,0.003]
[1739410231690,0.30952015,97976.0,97975.0,0.00772]
[1739410231894,0.31252015,97976.0,97975.0,0.00772]
[1739410232111,0.31552015,97976.0,97975.0,0.00772]
[1739410232247,0.31252015,97976.0,97975.0,0.00772]
[1739410232450,0.15,97975.0,97956.0,1.5]
[1739410232698,0.153123,97960.0,97959.0,0.1027273]
[1739410233277,0.15951682,97960.0,97959.0,0.1027273]
[1739410234079,0.00639382,97960.0,97959.0,0.1027273]
[1739410234277,0.15951682,97960.0,97959.0,0.1027273]
[1739410234592,0.153123,97960.0,97959.0,1.6027273]
[1739410234794,0.15951129,97960.0,97959.0,1.6027273]
[1739410235004,0.15951129,97960.0,97959.0,1.6057273]
[1739410235208,0.15951129,97960.0,97959.0,1.6077273]
[1739410235390,0.15951129,97960.0,97959.0,1.6047273]
[1739410236152,0.15951129,97960.0,97959.0,1.6067273]
[1739410242252,0.15951129,97960.0,97959.0,1.6047273]
[1739410242428,0.15951129,97960.0,97959.0,1.6027273]
[1739410242831,0.15951129,97960.0,97959.0,1.6037273]
[1739410243248,0.16051129,97960.0,97959.0,1.6037273]
[1739410243952,0.16051129,97960.0,97959.0,0.1037273]
[1739410244454,0.31051129,97960.0,97959.0,0.00122365]
[1739410248311,0.32946624,97960.0,97959.0,0.00122365]
[1739410248490,0.45456624,97960.0,97959.0,0.00122365]
[1739410248702,0.45556624,97960.0,97959.0,0.00122365]
[1739410249073,0.45556624,97960.0,97959.0,0.00022365]
[1739410249263,0.45456624,97960.0,97959.0,0.00022365]
[1739410249465,0.45456624,97960.0,97959.0,0.00122365]
[1739410249668,0.46656624,97960.0,97959.0,0.00222365]
[1739410250385,0.47656624,97960.0,97959.0,0.00222365]
[1739410250767,0.39106624,97960.0,97959.0,0.00122365]
[1739410250992,0.39406624,97960.0,97959.0,0.00122365]
[1739410251271,0.39106624,97960.0,97959.0,0.00122365]
[1739410251514,0.37906624,97960.0,97959.0,0.00022365]
[1739410251718,0.34346624,97960.0,97959.0,0.00122365]
[1739410252139,0.34646624,97960.0,97959.0,0.00122365]
[1739410252290,0.33546624,97960.0,97959.0,0.00022365]
[1739410252499,0.34446624,97960.0,97959.0,0.00122365]
[1739410263752,0.34446624,97960.0,97959.0,0.00122365]
[1739410265792,0.42456624,97960.0,97959.0,0.00122365]
[1739410268169,0.336125,97959.0,97958.0,6.9e-07]
[1739410268378,0.43862865,97959.0,97958.0,6.9e-07]
[1739410268629,0.44466866,97959.0,97958.0,6.9e-07]
[1739410269098,0.45459136,97959.0,97958.0,6.9e-07]
[1739410269312,0.45659136,97959.0,97958.0,6.9e-07]
[1739410269518,0.46259136,97959.0,97958.0,6.9e-07]
[1739410269976,0.46559136,97959.0,97958.0,6.9e-07]
[1739410270530,0.0099227,97953.0,97950.0,0.00022365]
[1739410270733,0.303137,97951.0,97950.0,0.00022365]
[1739410270934,0.43864065,97951.0,97950.0,6.5e-07]
[1739410271191,0.52216341,97951.0,97950.0,6.5e-07]
[1739410271742,0.52216341,97951.0,97950.0,0.00100065]
[1739410272219,0.52216341,97951.0,97950.0,6.5e-07]
[1739410272562,0.53816341,97951.0,97950.0,0.00100065]
[1739410272798,0.53616341,97951.0,97950.0,0.00100065]
[1739410273007,0.54116341,97951.0,97950.0,0.00100065]
[1739410273407,0.55108611,97951.0,97950.0,0.00100065]
[1739410278858,0.32815976,97951.0,97950.0,0.00100065]
[1739410279891,0.33808246,97951.0,97950.0,0.00100065]
[1739410282677,0.33818906,97951.0,97950.0,0.00100065]
[1739410285718,0.32826636,97951.0,97950.0,0.00100065]
[1739410285922,0.33818906,97951.0,97950.0,0.00100065]
[1739410291118,0.32826636,97951.0,97950.0,0.00100065]
[1739410292094,0.33818906,97951.0,97950.0,0.00100065]
[1739410296865,0.33818906,97951.0,97950.0,6.5e-07]
[1739410297078,0.34818906,97951.0,97950.0,6.5e-07]
[1739410298458,0.47369271,97951.0,97950.0,6.5e-07]
[1739410299116,0.51373481,97951.0,97950.0,6.5e-07]
[1739410299351,0.50310786,97951.0,97950.0,6.5e-07]
[1739410300302,0.30317,97930.0,97929.0,0.0751]
[1739410300480,0.30317,97930.0,97929.0,0.07554103]
[1739410300608,0.30911752,97930.0,97929.0,0.07554103]
[1739410301438,0.31411752,97930.0,97929.0,0.07554103]
[1739410303281,0.31411752,97930.0,97929.0,0.00044103]
[1739410305324,0.31411752,97930.0,97929.0,0.00054763]
[1739410307452,0.33408664,97930.0,97929.0,0.00054763]
[1739410313235,0.47951299,97930.0,97929.0,6.3e-07]
[1739410318775,0.49863147,97930.0,97929.0,6.3e-07]
[1739410323052,0.49363147,97930.0,97929.0,6.3e-07]
[1739410323464,0.50763147,97930.0,97929.0,6.3e-07]
[1739410323871,0.50063147,97930.0,97929.0,6.3e-07]
[1739410324514,0.51463147,97930.0,97929.0,6.3e-07]
[1739410324721,0.50763147,97930.0,97929.0,6.3e-07]
[1739410325127,0.51463147,97930.0,97929.0,6.3e-07]
[1739410325747,0.50663147,97930.0,97929.0,6.3e-07]
[1739410325949,0.52063147,97930.0,97929.0,6.3e-07]
[1739410326349,0.50663147,97930.0,97929.0,6.3e-07]
[1739410326767,0.52063147,97930.0,97929.0,6.3e-07]
[1739410328643,0.30318,97924.0,97923.0,0.00022386]
[1739410328829,0.30318,97924.0,97923.0,0.00030499]
[1739410329221,0.30909049,97924.0,97923.0,0.00030499]
[1739410329799,0.32209049,97924.0,97923.0,0.00030499]
[1739410330437,0.37182269,97924.0,97923.0,0.00030499]
[1739410330821,0.37582269,97924.0,97923.0,0.00030499]
[1739410335085,0.45493602,97924.0,97923.0,0.00030499]
[1739410335290,0.3032,97911.0,97907.0,0.0455]
[1739410335504,0.023,97917.0,97907.0,0.0455]
[1739410335505,0.303205,97908.0,97907.0,0.0455]
[1739410335738,0.303211,97904.0,97903.0,0.0805]
[1739410335941,0.30910569,97904.0,97903.0,0.0805]
[1739410336662,0.31972321,97904.0,97903.0,0.0805]
[1739410337054,0.32872321,97904.0,97903.0,0.0805]
[1739410337458,0.37845541,97904.0,97903.0,0.0805]
[1739410339397,0.15322,97898.0,97897.0,0.00022365]
[1739410339577,0.30322,97898.0,97897.0,0.00022365]
[1739410339734,0.30909999,97898.0,97897.0,0.00022365]
[1739410341274,0.35883219,97898.0,97897.0,0.00022365]
[1739410341902,0.36183219,97898.0,97897.0,0.00022365]
[1739410342322,0.35883219,97898.0,97897.0,0.00022365]
[1739410342461,0.36183219,97898.0,97897.0,0.00022365]
[1739410343861,0.33121847,97898.0,97897.0,0.00022365]
[1739410348792,0.33121847,97898.0,97897.0,0.12892365]
[1739410349343,0.18121847,97898.0,97897.0,0.12892365]
[1739410349771,0.33121847,97898.0,97897.0,0.12892365]
[1739410350123,0.31209999,97898.0,97897.0,0.12892365]
[1739410352116,0.30909999,97898.0,97897.0,0.00022365]
[1739410352420,0.33221872,97898.0,97897.0,0.00022365]
[1739410354614,0.32821872,97898.0,97897.0,0.00022365]
[1739410354788,0.33221872,97898.0,97897.0,0.00022365]
[1739410365363,0.32821872,97898.0,97897.0,0.00022365]
[1739410365552,0.34221872,97898.0,97897.0,0.00022365]
[1739410366205,0.34721872,97898.0,97897.0,0.00022365]
[1739410366754,0.33321872,97898.0,97897.0,0.00022365]
[1739410367201,0.34721872,97898.0,97897.0,0.00022365]
[1739410367721,0.33321872,97898.0,97897.0,0.00022365]
[1739410368017,0.34221872,97898.0,97897.0,0.00022365]
[1739410368230,0.34721872,97898.0,97897.0,0.00022365]
[1739410376114,0.34721872,97898.0,97897.0,0.00162365]
[1739410376312,0.34581872,97898.0,97897.0,0.00162365]
[1739410376517,0.34712753,97898.0,97897.0,0.00162365]
[1739410378433,0.3280088,97898.0,97897.0,0.00162365]
[1739410380608,0.3280088,97898.0,97897.0,0.04952365]
[1739410380760,0.3280088,97898.0,97897.0,0.12862365]
[1739410380961,0.32222,97898.0,97897.0,0.12862365]
[1739410381154,0.32799965,97898.0,97897.0,0.00162365]
[1739410383443,0.32799965,97898.0,97897.0,0.13002365]
[1739410384308,0.31399965,97898.0,97897.0,0.13002365]
[1739410384519,0.15577965,97898.0,97897.0,0.13002365]
[1739410384756,0.16277965,97898.0,97897.0,0.13002365]
[1739410384936,0.16277965,97898.0,97897.0,0.13102365]
[1739410385345,0.01277965,97898.0,97897.0,0.2335273]
[1739410385962,0.007,97898.0,97897.0,0.2335273]
[1739410386167,0.204267,97911.0,97900.0,0.0762]
[1739410386370,0.204261,97914.0,97900.0,0.0762]
[1739410386371,0.204236,97926.0,97905.0,0.0762]
[1739410386577,0.00569861,97910.0,97908.0,0.153204]
[1739410386784,0.153189,97918.0,97910.0,0.153201]
[1739410387006,0.153189,97918.0,97907.0,0.204275]
[1739410387007,0.204249,97920.0,97912.0,0.1248]
[1739410387215,0.204249,97920.0,97913.0,0.15070365]
[1739410387216,0.00570548,97915.0,97913.0,0.15070365]
[1739410387426,0.00570548,97915.0,97914.0,0.1248]
[1739410387631,0.00570548,97915.0,97914.0,0.22730365]
[1739410388052,0.00570548,97915.0,97914.0,1.72730365]
[1739410388469,0.004,97915.0,97914.0,1.72730365]
[1739410388685,0.00622663,97915.0,97914.0,1.72730365]
[1739410388887,0.00022387,97916.0,97915.0,0.153194]
[1739410389089,0.00022387,97916.0,97915.0,0.38049765]
[1739410389306,0.00022387,97916.0,97915.0,0.22730365]
[1739410390365,0.00822387,97916.0,97915.0,0.22730365]
[1739410390586,0.01444267,97916.0,97915.0,0.22730365]
[1739410390839,0.00644267,97916.0,97915.0,0.22730365]
[1739410391043,0.00744267,97916.0,97915.0,0.22730365]
[1739410391257,0.00844267,97916.0,97915.0,0.22930365]
[1739410391468,0.00844267,97916.0,97915.0,0.22730365]
[1739410391677,0.00844267,97916.0,97915.0,1.25114874]
[1739410391678,0.00744267,97916.0,97915.0,1.25114874]
[1739410391900,0.00222387,97916.0,97915.0,1.25114874]
[1739410392145,0.00222387,97916.0,97915.0,2.75314874]
[1739410392376,0.00122387,97916.0,97915.0,2.75114874]
[1739410393247,0.00122387,97916.0,97915.0,3.07814874]
[1739410393475,0.00022387,97916.0,97915.0,3.07814874]
[1739410393709,0.00122387,97916.0,97915.0,3.08014874]
[1739410393934,0.00122387,97916.0,97915.0,3.07814874]
[1739410394156,0.00122387,97916.0,97915.0,3.08014874]
[1739410394583,0.00222387,97916.0,97915.0,3.08014874]
[1739410398427,0.00222387,97916.0,97915.0,3.23334274]
[1739410398630,0.00122387,97916.0,97915.0,3.23334274]
[1739410398857,0.00122387,97916.0,97915.0,3.23134274]
[1739410399063,0.00222387,97916.0,97915.0,3.23134274]
[1739410399264,0.00322387,97916.0,97915.0,3.23334274]
[1739410400931,0.00322387,97916.0,97915.0,3.77984274]
[1739410401080,0.00022387,97930.0,97915.0,3.77984274]
[1739410401081,0.00022387,97930.0,97923.0,0.278181]
[1739410401282,0.00022387,97930.0,97923.0,0.48287575]
[1739410402166,0.00113213,97924.0,97923.0,0.49287575]
[1739410402374,0.00113213,97924.0,97923.0,0.49787575]
[1739410402817,0.00113213,97924.0,97923.0,1.99787575]
[1739410403560,0.00113213,97924.0,97923.0,1.84469475]
[1739410403744,0.00113213,97924.0,97923.0,1.99787575]
[1739410405343,0.0786,97970.0,97923.0,1.99787575]
[1739410405344,0.1531895,97987.0,97949.0,0.15314]
[1739410405529,0.00028241,97950.0,97949.0,2.56126275]
[1739410405724,0.00028241,97950.0,97949.0,2.74324224]
[1739410405930,0.00028241,97950.0,97949.0,4.24324224]
[1739410406948,0.00628241,97950.0,97949.0,4.24424224]
[1739410407413,0.00028241,97950.0,97949.0,4.24324224]
[1739410407646,0.00028241,97950.0,97949.0,4.24424224]
[1739410408211,0.00028241,97950.0,97949.0,4.24524224]
[1739410408617,0.0001065,97986.0,97949.0,4.24524224]
[1739410408618,0.0001065,97986.0,97950.0,0.3058]
[1739410408816,0.0001065,97986.0,97950.0,0.40830365]